fUST/lending_fUST_20250907
["ID","MTS","AMOUNT","RATE_DAILY","PERIOD"]
[384080688,1757253034133,-480.0,0.00013698,2]
[384080690,1757253034143,-480.0,0.00013698,2]
[384080692,1757253034154,-480.0,0.00013698,2]
[384080694,1757253034164,-625.14,0.00013698,2]
[384080696,1757253034174,-480.0,0.00013698,2]
[384080698,1757253034184,-480.0,0.00013698,2]
[384080700,1757253034194,-957.06,0.00013698,2]
[384080701,1757253034204,-569.94630896,0.00013698,2]
[384080703,1757253034214,-1308.6,0.00013698,2]
[384080705,1757253034224,-480.0,0.00013698,2]
[384080707,1757253034234,-272.65,0.00013698,2]
[384080709,1757253034245,-4871.99,0.00013698,2]
[384080711,1757253034255,-480.0,0.00013698,2]
[384080713,1757253034265,-488.57,0.00013698,2]
[384080715,1757253034275,-480.0,0.00013698,2]
[384080717,1757253034284,-30.56544825,0.00013698,2]
[384080720,1757253034302,-2134.7360637,0.00013698,2]
[384080840,1757253037674,-500.0,0.0001369,2]
[384080841,1757253037684,-500.0,0.0001369,2]
[384080842,1757253037694,-451.31814456,0.0001369,2]
[384080843,1757253037705,-7067.89429879,0.00013698,2]
[384080844,1757253037717,-8078.45377686,0.00013698,2]
[384080845,1757253037729,-667.30213753,0.00013698,2]
[384080846,1757253037746,-1888.27057153,0.00013698,2]
[384080847,1757253037758,-1110.91819394,0.00013698,2]
[384080848,1757253037770,-2320.95596561,0.00013698,2]
[384080849,1757253037782,-594.98404894,0.00013698,2]
[384080850,1757253037794,-561.84778779,0.00013698,2]
[384080851,1757253037806,-1192.07922957,0.00013698,2]
[384080852,1757253037818,-455.27,0.00013698,2]
[384080853,1757253037830,-516.76249321,0.00013698,2]
[384080854,1757253037843,-1920.0,0.00013698,2]
[384081021,1757253039829,-382.76199589,0.00013698,2]
[384081027,1757253039887,-1868.98221426,0.00013698,2]
[384081034,1757253039947,-3282.91447693,0.00013698,2]
[384081036,1757253039958,-3117.8012972,0.00013698,2]
[384081038,1757253039967,-1157.62,0.00013698,2]
[384081040,1757253039976,-480.0,0.00013698,2]
[384081042,1757253039986,-541.54,0.00013698,2]
[384081044,1757253039995,-480.0,0.00013698,2]
[384081046,1757253040005,-480.0,0.00013698,2]
[384081048,1757253040016,-392.28968015,0.00013698,2]
[384081050,1757253040025,-480.0,0.00013698,2]
[384081052,1757253040034,-2873.27,0.00013698,2]
[384081054,1757253040045,-916.52,0.00013698,2]
[384081056,1757253040054,-480.0,0.00013698,2]
[384081058,1757253040063,-1396.65,0.00013698,2]
[384081060,1757253040072,-480.0,0.00013698,2]
[384081061,1757253040082,-480.0,0.00013698,2]
[384081063,1757253040092,-480.0,0.00013698,2]
[384081065,1757253040101,-480.0,0.00013698,2]
[384081066,1757253040110,-504.64,0.00013698,2]
[384081067,1757253040119,-1240.91,0.00013698,2]
[384081068,1757253040129,-480.0,0.00013698,2]
[384081069,1757253040138,-480.0,0.00013698,2]
[384081071,1757253040147,-480.0,0.00013698,2]
[384081072,1757253040157,-1856.29,0.00013698,2]
[384081073,1757253040167,-480.0,0.00013698,2]
[384081074,1757253040177,-459.00872101,0.00013698,2]
[384081075,1757253040187,-1551.59,0.00013698,2]
[384081076,1757253040196,-1507.03827758,0.00013698,2]
[384081077,1757253040208,-1502.25172242,0.00013698,2]
[384081078,1757253040218,-515.31,0.00013698,2]
[384081079,1757253040228,-480.0,0.00013698,2]
[384081080,1757253040237,-480.0,0.00013698,2]
[384081081,1757253040247,-480.0,0.00013698,2]
[384081082,1757253040257,-528.34,0.00013698,2]
[384081083,1757253040267,-481.69628703,0.00013698,2]
[384081084,1757253040277,-500.0,0.00013698,2]
[384081085,1757253040286,-500.0,0.00013698,2]
[384081086,1757253040296,-500.0,0.00013698,2]
[384081087,1757253040306,-480.0,0.00013698,2]
[384081088,1757253040317,-480.0,0.00013698,2]
[384081089,1757253040327,-500.0,0.00013698,2]
[384081090,1757253040336,-500.0,0.00013698,2]
[384081091,1757253040346,-823.68,0.00013698,2]
[384081092,1757253040356,-482.45576023,0.00013698,2]
[384081093,1757253040366,-480.0,0.00013698,2]
[384081094,1757253040375,-833.4,0.00013698,2]
[384081095,1757253040385,-480.0,0.00013698,2]
[384081096,1757253040395,-80.65843973,0.00013698,2]
[384081097,1757253040406,-408.66156027,0.00013698,2]
[384081098,1757253040416,-480.0,0.00013698,2]
[384081099,1757253040426,-1083.93,0.00013698,2]
[384081100,1757253040436,-2272.23,0.00013698,2]
[384081101,1757253040446,-482.476526,0.00013698,2]
[384081102,1757253040455,-1653.98,0.00013698,2]
[384081103,1757253040465,-480.0,0.00013698,2]
[384081104,1757253040474,-1760.87794022,0.00013698,2]
[384081572,1757253045889,-38.27205978,0.00013698,2]
[384081574,1757253045899,-480.0,0.00013698,2]
[384081576,1757253045909,-480.0,0.00013698,2]
[384081578,1757253045919,-500.0,0.00013698,2]
[384081580,1757253045932,-500.0,0.00013698,2]
[384081582,1757253045942,-480.0,0.00013698,2]
[384081584,1757253045952,-11485.12,0.00013698,2]
[384081586,1757253045962,-480.0,0.00013698,2]
[384081588,1757253045971,-523.54,0.00013698,2]
[384081590,1757253045980,-2954.76,0.00013698,2]
[384081592,1757253045990,-708.01,0.00013698,2]
[384081594,1757253045999,-480.0,0.00013698,2]
[384081595,1757253046010,-6026.55,0.00013698,2]
[384081598,1757253046022,-480.0,0.00013698,2]
[384081600,1757253046032,-1059.01,0.00013698,2]
[384081601,1757253046043,-252.041302,0.00013698,2]
[384081604,1757253046053,-480.0,0.00013698,2]
[384081606,1757253046063,-480.0,0.00013698,2]
[384081608,1757253046072,-3263.15,0.00013698,2]
[384081610,1757253046082,-794.42,0.00013698,2]
[384081611,1757253046091,-774.09,0.00013698,2]
[384081614,1757253046101,-1130.42,0.00013698,2]
[384081616,1757253046111,-156.20083251,0.00013698,2]
[384081618,1757253046120,-1621.25,0.00013698,2]
[384081619,1757253046130,-480.0,0.00013698,2]
[384081621,1757253046140,-634.05,0.00013698,2]
[384081623,1757253046150,-2632.04,0.00013698,2]
[384081625,1757253046160,-788.17,0.00013698,2]
[384081628,1757253046170,-585.04,0.00013698,2]
[384081630,1757253046180,-700.25,0.00013698,2]
[384081631,1757253046189,-899.88470944,0.00013698,2]
[384081636,1757253046229,-3.33529056,0.00013698,2]
[384081638,1757253046238,-735.67283933,0.00013698,2]
[384083073,1757253227040,256.61417524,0.00013352,2]
[384083075,1757253229737,1025.43024428,0.00013352,2]
[384083077,1757253239903,1500.0,0.00013424,2]
[384083078,1757253264232,1200.0,0.00013424,2]
[384083079,1757253288991,1200.0,0.00013424,2]
[384083083,1757253312173,1200.0,0.00013424,2]
[384083089,1757253336949,1200.0,0.00013424,2]
[384083099,1757253360840,1200.0,0.00013424,2]
[384083104,1757253385955,1200.0,0.00013424,2]
[384083106,1757253410093,1200.0,0.00013424,2]
[384083107,1757253429659,381.71082269,0.00013352,2]
[384083108,1757253431986,1526.84329077,0.00013352,2]
[384083109,1757253433913,431.61876266,0.00013462,2]
[384083110,1757253434472,3431.96200682,0.00013352,2]
[384083111,1757253457535,431.61876266,0.00013462,2]
[384083112,1757253481320,431.61876266,0.00013462,2]
[384083116,1757253505719,2058.92694618,0.00013462,2]
[384083117,1757253524879,366.61749065,0.00013352,2]
[384083118,1757253528048,1466.46996259,0.00013352,2]
[384083119,1757253530336,3296.25785841,0.00013352,2]
[384083120,1757253531081,2058.92694618,0.00013462,2]
[384083149,1757253590329,1627.30818352,0.00013462,2]
[384083256,1757253617023,1077.0685311,0.00013461,2]
[384083289,1757253679594,300.0,0.00013461,2]
[384083291,1757253688260,1800.0,0.00013461,2]
[384083293,1757253696840,300.0,0.00013461,2]
[384083295,1757253706489,300.0,0.00013461,2]
[384083297,1757253714943,1800.0,0.00013461,2]
[384083303,1757253724860,300.0,0.00013461,2]
[384083304,1757253733719,300.0,0.00013461,2]
[384083308,1757253743251,1400.0,0.00013461,2]
[384083310,1757253752367,3000.0,0.00013461,2]
[384083313,1757253760828,300.0,0.00013461,2]
[384083319,1757253778023,3000.0,0.00013461,2]
[384083322,1757253786439,300.0,0.00013461,2]
[384083327,1757253802974,300.0,0.0001346,2]
[384083333,1757253811399,300.0,0.0001346,2]
[384083340,1757253827950,300.0,0.0001346,2]
[384083343,1757253836364,300.0,0.0001346,2]
[384083349,1757253852842,1327.81815688,0.00013461,2]
[384083352,1757253865523,2900.0,0.00013461,2]
[384083397,1757253991898,154.59303517,0.00013462,2]
[384083496,1757254188528,192.41185892,0.00013287,2]
[384083541,1757254232022,-1200.0,0.00013596,2]
[384083542,1757254232032,-1200.0,0.00013597,2]
[384083543,1757254232042,-300.0,0.00013597,2]
[384083544,1757254232052,-300.0,0.00013597,2]
[384083545,1757254232062,-1664.65562201,0.00013598,2]
[384083546,1757254232071,-6399.4221212,0.00013598,2]
[384083547,1757254232081,-903.63753132,0.00013598,2]
[384083549,1757254232091,-507.98820807,0.00013697,2]
[384083550,1757254232100,-257.49312486,0.00013697,2]
[384083551,1757254232109,-500.0,0.00013697,2]
[384083552,1757254232119,-481.4279086,0.00013698,2]
[384083553,1757254232128,-203.01101397,0.00013698,2]
[384083554,1757254232142,-4938.2396476,0.00013698,2]
[384083555,1757254232152,-462.40309287,0.00013698,2]
[384083556,1757254232162,-480.0,0.00013698,2]
[384083557,1757254232171,-480.0,0.00013698,2]
[384083558,1757254232181,-480.0,0.00013698,2]
[384083559,1757254232190,-336.73026645,0.00013698,2]
[384083560,1757254232200,-480.0,0.00013698,2]
[384083561,1757254232209,-480.0,0.00013698,2]
[384083562,1757254232221,-346.4213317,0.00013698,2]
[384083563,1757254232234,-133.5786683,0.00013698,2]
[384083564,1757254232244,-480.0,0.00013698,2]
[384083565,1757254232255,-480.0,0.00013698,2]
[384083566,1757254232265,-480.0,0.00013698,2]
[384083567,1757254232275,-480.0,0.00013698,2]
[384083568,1757254232285,-480.0,0.00013698,2]
[384083569,1757254232298,-480.0,0.00013698,2]
[384083570,1757254232308,-547.59,0.00013698,2]
[384083571,1757254232318,-480.0,0.00013698,2]
[384083572,1757254232328,-483.25609583,0.00013698,2]
[384083573,1757254232338,-480.0,0.00013698,2]
[384083574,1757254232347,-10486.94899385,0.00013698,2]
[384083575,1757254232360,-23371.60136795,0.00013698,2]
[384083576,1757254232370,-480.0,0.00013698,2]
[384083577,1757254232380,-480.0,0.00013698,2]
[384083578,1757254232396,-480.0,0.00013698,2]
[384083579,1757254232406,-480.0,0.00013698,2]
[384083580,1757254232416,-480.0,0.00013698,2]
[384083581,1757254232426,-480.0,0.00013698,2]
[384083582,1757254232436,-480.0,0.00013698,2]
[384083583,1757254232447,-480.0,0.00013698,2]
[384083584,1757254232457,-480.0,0.00013698,2]
[384083585,1757254232567,-480.0,0.00013698,2]
[384083587,1757254232608,-480.0,0.00013698,2]
[384083588,1757254232618,-480.0,0.00013698,2]
[384083589,1757254232628,-480.0,0.00013698,2]
[384083590,1757254232639,-480.0,0.00013698,2]
[384083591,1757254232649,-480.0,0.00013698,2]
[384083592,1757254232660,-480.0,0.00013698,2]
[384083593,1757254232671,-295.55875626,0.00013698,2]
[384083594,1757254232681,-480.0,0.00013698,2]
[384083595,1757254232691,-480.0,0.00013698,2]
[384083596,1757254232701,-482.33031092,0.00013698,2]
[384083597,1757254232711,-480.0,0.00013698,2]
[384083598,1757254232722,-480.0,0.00013698,2]
[384083599,1757254232732,-499.1,0.00013698,2]
[384083600,1757254232741,-482.36568743,0.00013698,2]
[384083601,1757254232751,-480.0,0.00013698,2]
[384083602,1757254232761,-481.48757084,0.00013698,2]
[384083603,1757254232770,-393.0177213,0.00013698,2]
[384083604,1757254232780,-480.0,0.00013698,2]
[384083605,1757254232791,-480.0,0.00013698,2]
[384083606,1757254232801,-480.0,0.00013698,2]
[384083607,1757254232811,-570.43,0.00013698,2]
[384083608,1757254232821,-629.099186,0.00013698,2]
[384083609,1757254232831,-480.0,0.00013698,2]
[384083610,1757254232842,-480.0,0.00013698,2]
[384083611,1757254232852,-480.0,0.00013698,2]
[384083612,1757254232862,-480.0,0.00013698,2]
[384083613,1757254232872,-480.0,0.00013698,2]
[384083614,1757254232881,-514.83,0.00013698,2]
[384083615,1757254232891,-483.02830549,0.00013698,2]
[384083616,1757254232902,-480.0,0.00013698,2]
[384083617,1757254232912,-1399.8625331,0.00013698,2]
[384083618,1757254232923,-480.0,0.00013698,2]
[384083619,1757254232932,-480.0,0.00013698,2]
[384083620,1757254232942,-480.0,0.00013698,2]
[384083621,1757254232952,-480.0,0.00013698,2]
[384083622,1757254232962,-481.60976493,0.00013698,2]
[384083623,1757254232975,-480.0,0.00013698,2]
[384083624,1757254232986,-480.0,0.00013698,2]
[384083625,1757254232996,-313.94828745,0.00013698,2]
[384083626,1757254233006,-480.0,0.00013698,2]
[384083627,1757254233016,-480.0,0.00013698,2]
[384083628,1757254233025,-480.0,0.00013698,2]
[384083629,1757254233035,-480.0,0.00013698,2]
[384083630,1757254233046,-480.0,0.00013698,2]
[384083631,1757254233057,-480.0,0.00013698,2]
[384083632,1757254233069,-480.0,0.00013698,2]
[384083633,1757254233080,-844.25,0.00013698,2]
[384083634,1757254233090,-716.12,0.00013698,2]
[384083635,1757254233101,-480.0,0.00013698,2]
[384083636,1757254233111,-480.0,0.00013698,2]
[384083637,1757254233121,-480.0,0.00013698,2]
[384083638,1757254233131,-480.0,0.00013698,2]
[384083639,1757254233142,-480.0,0.00013698,2]
[384083640,1757254233152,-779.83,0.00013698,2]
[384083641,1757254233162,-480.0,0.00013698,2]
[384083642,1757254233172,-1000.0,0.00013698,2]
[384083643,1757254233182,-480.0,0.00013698,2]
[384083644,1757254233192,-480.0,0.00013698,2]
[384083645,1757254233202,-280.30932051,0.00013698,2]
[384083646,1757254233212,-480.0,0.00013698,2]
[384083647,1757254233224,-481.8266619,0.00013698,2]
[384083648,1757254233234,-481.39302535,0.00013698,2]
[384083649,1757254233244,-480.0,0.00013698,2]
[384083650,1757254233255,-480.0,0.00013698,2]
[384083651,1757254233265,-480.0,0.00013698,2]
[384083652,1757254233275,-480.0,0.00013698,2]
[384083653,1757254233286,-480.0,0.00013698,2]
[384083654,1757254233297,-480.0,0.00013698,2]
[384083655,1757254233307,-481.56311209,0.00013698,2]
[384083656,1757254233318,-480.0,0.00013698,2]
[384083657,1757254233327,-480.0,0.00013698,2]
[384083658,1757254233338,-480.0,0.00013698,2]
[384083659,1757254233348,-480.0,0.00013698,2]
[384083660,1757254233357,-524.4896087,0.00013698,2]
[384083661,1757254233365,-480.0,0.00013698,2]
[384083662,1757254233376,-480.0,0.00013698,2]
[384083663,1757254233386,-480.0,0.00013698,2]
[384083664,1757254233396,-480.0,0.00013698,2]
[384083665,1757254233406,-480.0,0.00013698,2]
[384083666,1757254233416,-500.0,0.00013698,2]
[384083667,1757254233427,-500.0,0.00013698,2]
[384083668,1757254233437,-500.0,0.00013698,2]
[384083669,1757254233447,-500.0,0.00013698,2]
[384083670,1757254233457,-500.0,0.00013698,2]
[384083671,1757254233468,-500.0,0.00013698,2]
[384083672,1757254233482,-500.0,0.00013698,2]
[384083673,1757254233491,-500.0,0.00013698,2]
[384083674,1757254233502,-480.0,0.00013698,2]
[384083675,1757254233512,-480.0,0.00013698,2]
[384083676,1757254233521,-480.0,0.00013698,2]
[384083677,1757254233531,-480.0,0.00013698,2]
[384083678,1757254233541,-563.97,0.00013698,2]
[384083679,1757254233551,-480.0,0.00013698,2]
[384083680,1757254233562,-480.0,0.00013698,2]
[384083681,1757254233574,-480.0,0.00013698,2]
[384083682,1757254233586,-480.0,0.00013698,2]
[384083683,1757254233596,-480.0,0.00013698,2]
[384083684,1757254233607,-480.0,0.00013698,2]
[384083685,1757254233617,-480.0,0.00013698,2]
[384083686,1757254233627,-818.6,0.00013698,2]
[384083687,1757254233637,-480.0,0.00013698,2]
[384083688,1757254233647,-265.4959766,0.00013698,2]
[384083689,1757254233658,-480.0,0.00013698,2]
[384083690,1757254233668,-480.0,0.00013698,2]
[384083691,1757254233678,-480.0,0.00013698,2]
[384083692,1757254233688,-482.54243483,0.00013698,2]
[384083693,1757254233699,-481.26547292,0.00013698,2]
[384083694,1757254233709,-480.0,0.00013698,2]
[384083695,1757254233718,-480.0,0.00013698,2]
[384083696,1757254233732,-480.0,0.00013698,2]
[384083697,1757254233743,-480.0,0.00013698,2]
[384083698,1757254233753,-776.84,0.00013698,2]
[384083699,1757254233765,-424.53,0.00013698,2]
[384083700,1757254233775,-481.23272712,0.00013698,2]
[384083701,1757254233786,-448.87888543,0.00013698,2]
[384083702,1757254233796,-480.0,0.00013698,2]
[384083703,1757254233806,-480.0,0.00013698,2]
[384083704,1757254233816,-480.0,0.00013698,2]
[384083705,1757254233826,-480.0,0.00013698,2]
[384083706,1757254233836,-480.0,0.00013698,2]
[384083707,1757254233845,-481.21143917,0.00013698,2]
[384083708,1757254233855,-480.0,0.00013698,2]
[384083709,1757254233865,-619.09,0.00013698,2]
[384083710,1757254233875,-480.0,0.00013698,2]
[384083711,1757254233886,-481.37274965,0.00013698,2]
[384083712,1757254233896,-480.0,0.00013698,2]
[384083713,1757254233906,-480.0,0.00013698,2]
[384083714,1757254233916,-480.0,0.00013698,2]
[384083715,1757254233926,-480.0,0.00013698,2]
[384083716,1757254233936,-480.0,0.00013698,2]
[384083717,1757254233946,-480.0,0.00013698,2]
[384083718,1757254233957,-463.77910553,0.00013698,2]
[384083719,1757254233969,-463.77910553,0.00013698,2]
[384083720,1757254233981,-480.0,0.00013698,2]
[384083721,1757254233991,-480.0,0.00013698,2]
[384083722,1757254234001,-480.0,0.00013698,2]
[384083723,1757254234011,-480.0,0.00013698,2]
[384083724,1757254234021,-480.0,0.00013698,2]
[384083725,1757254234031,-480.0,0.00013698,2]
[384083726,1757254234042,-480.0,0.00013698,2]
[384083727,1757254234052,-480.70226512,0.00013698,2]
[384083728,1757254234062,-480.0,0.00013698,2]
[384083729,1757254234072,-480.0,0.00013698,2]
[384083730,1757254234082,-480.0,0.00013698,2]
[384083731,1757254234091,-480.0,0.00013698,2]
[384083732,1757254234102,-480.0,0.00013698,2]
[384083733,1757254234111,-481.29838311,0.00013698,2]
[384083734,1757254234121,-480.0,0.00013698,2]
[384083735,1757254234131,-480.0,0.00013698,2]
[384083736,1757254234140,-480.0,0.00013698,2]
[384083737,1757254234151,-480.0,0.00013698,2]
[384083738,1757254234161,-480.0,0.00013698,2]
[384083739,1757254234171,-480.0,0.00013698,2]
[384083740,1757254234181,-480.0,0.00013698,2]
[384083741,1757254234191,-480.0,0.00013698,2]
[384083742,1757254234202,-480.0,0.00013698,2]
[384083743,1757254234213,-480.0,0.00013698,2]
[384083744,1757254234225,-480.0,0.00013698,2]
[384083745,1757254234235,-480.0,0.00013698,2]
[384083746,1757254234246,-642.46,0.00013698,2]
[384083747,1757254234256,-480.0,0.00013698,2]
[384083748,1757254234267,-480.0,0.00013698,2]
[384083749,1757254234278,-166.33181969,0.00013698,2]
[384083750,1757254234288,-480.0,0.00013698,2]
[384083751,1757254234298,-480.0,0.00013698,2]
[384083752,1757254234308,-480.0,0.00013698,2]
[384083753,1757254234324,-519.92539704,0.00013698,2]
[384083754,1757254234334,-480.0,0.00013698,2]
[384083755,1757254234344,-605.35,0.00013698,2]
[384083756,1757254234354,-480.0,0.00013698,2]
[384083757,1757254234364,-480.0,0.00013698,2]
[384083758,1757254234375,-480.0,0.00013698,2]
[384083759,1757254234386,-480.0,0.00013698,2]
[384083760,1757254234396,-480.0,0.00013698,2]
[384083761,1757254234406,-480.0,0.00013698,2]
[384083762,1757254234416,-480.0,0.00013698,2]
[384083763,1757254234426,-480.0,0.00013698,2]
[384083764,1757254234437,-480.0,0.00013698,2]
[384083765,1757254234447,-480.0,0.00013698,2]
[384083766,1757254234457,-480.82383445,0.00013698,2]
[384083767,1757254234466,-480.0,0.00013698,2]
[384083768,1757254234478,-480.0,0.00013698,2]
[384083769,1757254234488,-480.0,0.00013698,2]
[384083770,1757254234498,-480.0,0.00013698,2]
[384083771,1757254234507,-480.0,0.00013698,2]
[384083772,1757254234517,-480.0,0.00013698,2]
[384083773,1757254234527,-480.0,0.00013698,2]
[384083774,1757254234537,-480.0,0.00013698,2]
[384083775,1757254234547,-480.0,0.00013698,2]
[384083776,1757254234556,-480.0,0.00013698,2]
[384083777,1757254234567,-503.62,0.00013698,2]
[384083778,1757254234580,-481.7619985,0.00013698,2]
[384083779,1757254234590,-480.0,0.00013698,2]
[384083780,1757254234600,-717.58,0.00013698,2]
[384083781,1757254234611,-480.0,0.00013698,2]
[384083782,1757254234622,-480.0,0.00013698,2]
[384083783,1757254234632,-480.0,0.00013698,2]
[384083784,1757254234642,-480.0,0.00013698,2]
[384083785,1757254234652,-548.83,0.00013698,2]
[384083786,1757254234663,-480.0,0.00013698,2]
[384083787,1757254234673,-480.0,0.00013698,2]
[384083788,1757254234682,-480.0,0.00013698,2]
[384083789,1757254234692,-591.46,0.00013698,2]
[384083790,1757254234702,-480.0,0.00013698,2]
[384083791,1757254234713,-480.0,0.00013698,2]
[384083792,1757254234725,-480.0,0.00013698,2]
[384083793,1757254234738,-480.0,0.00013698,2]
[384083794,1757254234749,-480.0,0.00013698,2]
[384083795,1757254234762,-480.0,0.00013698,2]
[384083796,1757254234773,-480.0,0.00013698,2]
[384083797,1757254234785,-480.0,0.00013698,2]
[384083798,1757254234796,-489.14134259,0.00013698,2]
[384083799,1757254234807,-480.0,0.00013698,2]
[384083800,1757254234818,-529.13484987,0.00013698,2]
[384083801,1757254234829,-547.69736113,0.00013698,2]
[384083802,1757254234946,-480.0,0.00013698,2]
[384083803,1757254234956,-480.0,0.00013698,2]
[384083804,1757254234966,-480.0,0.00013698,2]
[384083805,1757254234979,-480.0,0.00013698,2]
[384083806,1757254234991,-480.0,0.00013698,2]
[384083807,1757254235002,-465.81087191,0.00013698,2]
[384083808,1757254235013,-480.0,0.00013698,2]
[384083809,1757254235023,-480.0,0.00013698,2]
[384083810,1757254235033,-480.0,0.00013698,2]
[384083811,1757254235043,-480.0,0.00013698,2]
[384083812,1757254235053,-480.0,0.00013698,2]
[384083813,1757254235063,-776.34,0.00013698,2]
[384083814,1757254235074,-508.74794958,0.00013698,2]
[384083815,1757254235084,-480.0,0.00013698,2]
[384083816,1757254235094,-876.71,0.00013698,2]
[384083817,1757254235104,-480.0,0.00013698,2]
[384083818,1757254235114,-480.0,0.00013698,2]
[384083819,1757254235123,-480.0,0.00013698,2]
[384083820,1757254235133,-480.0,0.00013698,2]
[384083821,1757254235143,-480.0,0.00013698,2]
[384083822,1757254235153,-480.0,0.00013698,2]
[384083823,1757254235163,-480.0,0.00013698,2]
[384083824,1757254235174,-613.87,0.00013698,2]
[384083825,1757254235184,-781.32,0.00013698,2]
[384083826,1757254235194,-480.0,0.00013698,2]
[384083827,1757254235203,-738.51,0.00013698,2]
[384083828,1757254235213,-921.2,0.00013698,2]
[384083829,1757254235225,-480.0,0.00013698,2]
[384083830,1757254235235,-480.0,0.00013698,2]
[384083831,1757254235245,-480.0,0.00013698,2]
[384083832,1757254235255,-480.0,0.00013698,2]
[384083833,1757254235264,-485.87251905,0.00013698,2]
[384083834,1757254235274,-482.75407497,0.00013698,2]
[384083835,1757254235284,-480.0,0.00013698,2]
[384083836,1757254235294,-480.0,0.00013698,2]
[384083837,1757254235304,-1077.77,0.00013698,2]
[384083838,1757254235313,-626.83,0.00013698,2]
[384083839,1757254235323,-480.0,0.00013698,2]
[384083840,1757254235334,-480.0,0.00013698,2]
[384083841,1757254235344,-480.0,0.00013698,2]
[384083842,1757254235356,-567.15525277,0.00013698,2]
[384083843,1757254235366,-480.0,0.00013698,2]
[384083844,1757254235376,-480.0,0.00013698,2]
[384083845,1757254235386,-480.0,0.00013698,2]
[384083846,1757254235397,-480.0,0.00013698,2]
[384083847,1757254235407,-480.0,0.00013698,2]
[384083848,1757254235417,-820.39,0.00013698,2]
[384083849,1757254235427,-480.0,0.00013698,2]
[384083850,1757254235437,-480.0,0.00013698,2]
[384083851,1757254235447,-208.60472752,0.00013698,2]
[384083852,1757254235456,-480.0,0.00013698,2]
[384083853,1757254235466,-480.0,0.00013698,2]
[384083854,1757254235478,-480.0,0.00013698,2]
[384083855,1757254235488,-480.0,0.00013698,2]
[384083856,1757254235497,-480.0,0.00013698,2]
[384083857,1757254235507,-480.0,0.00013698,2]
[384083858,1757254235517,-480.0,0.00013698,2]
[384083859,1757254235526,-480.0,0.00013698,2]
[384083860,1757254235536,-480.0,0.00013698,2]
[384083861,1757254235546,-281.33145424,0.00013698,2]
[384083862,1757254235556,-480.0,0.00013698,2]
[384083863,1757254235566,-480.0,0.00013698,2]
[384083864,1757254235579,-461.15880936,0.00013698,2]
[384083865,1757254235589,-480.0,0.00013698,2]
[384083866,1757254235599,-480.0,0.00013698,2]
[384083867,1757254235610,-346.94896235,0.00013698,2]
[384083868,1757254235622,-480.0,0.00013698,2]
[384083869,1757254235632,-480.0,0.00013698,2]
[384083870,1757254235643,-481.83652388,0.00013698,2]
[384083871,1757254235653,-480.0,0.00013698,2]
[384083872,1757254235664,-480.0,0.00013698,2]
[384083873,1757254235674,-480.0,0.00013698,2]
[384083874,1757254235684,-480.0,0.00013698,2]
[384083875,1757254235694,-531.71312996,0.00013698,2]
[384083876,1757254235704,-480.0,0.00013698,2]
[384083877,1757254235714,-480.0,0.00013698,2]